bitfinex/quotes_BTCUSD_20241222
["timestamp","ask_amount","ask_price","bid_price","bid_amount"]
[1734885046067,0.0002958,95721.0,95720.0,0.002]
[1734885046272,0.208942,95720.0,95711.0,0.46173225]
[1734885046440,0.0002958,95721.0,95712.0,0.3102684]
[1734885046652,0.0002958,95721.0,95712.0,0.3042684]
[1734885047049,0.208942,95720.0,95712.0,0.1013084]
[1734885047284,0.0002958,95721.0,95712.0,0.1013084]
[1734885047797,0.0002958,95721.0,95713.0,0.208958]
[1734885048224,0.0002958,95721.0,95712.0,0.1013084]
[1734885048440,0.0002958,95721.0,95712.0,0.1023084]
[1734885048655,0.208942,95720.0,95712.0,0.1023084]
[1734885048874,0.208942,95720.0,95711.0,0.46173225]
[1734885049078,0.208953,95715.0,95713.0,0.001]
[1734885049354,0.208953,95715.0,95703.0,0.46173225]
[1734885049660,0.208953,95715.0,95704.0,0.1013084]
[1734885049841,0.208955,95714.0,95712.0,0.001]
[1734885050043,0.0002958,95721.0,95712.0,0.001]
[1734885050044,0.208958,95713.0,95712.0,0.001]
[1734885051004,0.208958,95713.0,95699.0,0.00926891]
[1734885051194,0.208958,95713.0,95697.0,0.46173225]
[1734885051195,0.208967,95709.0,95697.0,0.46173225]
[1734885051396,0.208967,95709.0,95697.0,0.56304065]
[1734885051643,0.208967,95709.0,95697.0,0.55704065]
[1734885052208,0.01237913,95712.0,95697.0,0.56636561]
[1734885052280,0.208962,95711.0,95698.0,0.0010448]
[1734885053059,0.01237913,95717.0,95698.0,0.0010448]
[1734885053060,0.01237913,95717.0,95699.0,0.1013084]
[1734885053268,0.05848708,95721.0,95711.0,0.208962]
[1734885053269,0.01237913,95712.0,95711.0,0.208962]
[1734885053641,0.01237913,95712.0,95709.0,0.208966]
[1734885053833,0.01267493,95721.0,95709.0,0.1013084]
[1734885054009,0.01267493,95721.0,95710.0,0.00104467]
[1734885054208,0.01267493,95721.0,95711.0,0.208962]
[1734885054782,0.01237913,95720.0,95711.0,0.208962]
[1734885055139,0.01237913,95720.0,95711.0,0.417924]
[1734885055464,0.01237913,95720.0,95715.0,0.208953]
[1734885055673,0.01237913,95719.0,95717.0,0.208949]
[1734885055876,0.01237913,95719.0,95718.0,0.00104461]
[1734885056007,0.0012958,95721.0,95719.0,0.208944]
[1734885056268,0.0002958,95721.0,95720.0,0.1013084]
[1734885056464,0.0002958,95721.0,95720.0,0.10235301]
[1734885056667,0.01267493,95721.0,95720.0,0.09635301]
[1734885056868,0.01267493,95721.0,95720.0,0.09635298]
[1734885057185,0.01267493,95721.0,95720.0,0.0953084]
[1734885057392,0.01267493,95721.0,95720.0,0.09635296]
[1734885058493,0.0002958,95721.0,95720.0,0.09635296]
[1734885058616,0.0002958,95721.0,95720.0,0.11935296]
[1734885059796,0.0012958,95721.0,95720.0,0.12535296]
[1734885061070,0.0002958,95721.0,95720.0,0.57508521]
[1734885061267,0.0002958,95721.0,95720.0,0.57404065]
[1734885062382,0.0092958,95721.0,95720.0,0.57504065]
[1734885062818,0.0002958,95721.0,95720.0,0.57404065]
[1734885063228,0.0092958,95721.0,95720.0,0.71457691]
[1734885064622,0.0782,95762.0,95751.0,0.208875]
[1734885064873,0.0782,95762.0,95730.0,0.208919]
[1734885064874,0.0782,95762.0,95732.0,0.45573225]
[1734885065051,0.00016253,95752.0,95751.0,0.208875]
[1734885065315,0.00016253,95752.0,95751.0,0.3101834]
[1734885066749,0.00116253,95752.0,95751.0,0.3041834]
[1734885066992,0.00016253,95752.0,95751.0,0.3041834]
[1734885067879,0.00016253,95752.0,95751.0,0.75991565]
[1734885068856,0.00016253,95752.0,95751.0,0.76691565]
[1734885069248,0.00016253,95752.0,95751.0,0.75991565]
[1734885069670,0.00016253,95752.0,95751.0,0.76891565]
[1734885070012,0.00016253,95752.0,95751.0,0.55704065]
[1734885070296,0.00016253,95752.0,95751.0,0.46473225]
[1734885070523,0.00016253,95752.0,95751.0,0.45573225]
[1734885070979,0.00016253,95752.0,95751.0,0.45673225]
[1734885071671,0.00016253,95752.0,95751.0,0.67264065]
[1734885072094,0.00033373,95752.0,95751.0,0.67264065]
[1734885072269,0.00033373,95752.0,95751.0,0.67164065]
[1734885072481,0.00133373,95752.0,95751.0,0.67164065]
[1734885072804,0.00033373,95752.0,95751.0,0.67164065]
[1734885073239,0.00133373,95752.0,95751.0,0.67264065]
[1734885073830,0.00133373,95752.0,95751.0,0.62714065]
[1734885074001,0.00133373,95752.0,95751.0,0.55104065]
[1734885074002,0.00033373,95752.0,95751.0,0.55104065]
[1734885075391,0.00033373,95752.0,95751.0,0.57404065]
[1734885075595,0.00133373,95752.0,95751.0,0.81799131]
[1734885075739,0.00033373,95752.0,95751.0,0.81699131]
[1734885076360,0.00133373,95752.0,95751.0,0.81799131]
[1734885076724,0.00033373,95752.0,95751.0,0.81699131]
[1734885076911,0.00133373,95752.0,95751.0,0.81699131]
[1734885077137,0.00133373,95752.0,95751.0,1.20663586]
[1734885077253,0.00033373,95752.0,95751.0,1.20663586]
[1734885078950,0.00133373,95752.0,95751.0,1.29966003]
[1734885079130,0.00133373,95752.0,95751.0,1.29847855]
[1734885079461,0.00096807,95752.0,95751.0,1.29847855]
[1734885080322,0.00096807,95752.0,95751.0,1.25170584]
[1734885081695,0.00096807,95752.0,95751.0,0.86213922]
[1734885083601,0.00096807,95752.0,95751.0,0.83913922]
[1734885084006,0.00096807,95752.0,95751.0,0.69985917]
[1734885085338,0.00096807,95752.0,95751.0,0.69994477]
[1734885085585,0.00113927,95752.0,95751.0,0.69994477]
[1734885087146,0.00113927,95752.0,95751.0,0.79278229]
[1734885088142,0.00113927,95752.0,95751.0,0.69994477]
[1734885088746,0.0001712,95752.0,95751.0,0.69994477]
[1734885089181,0.0061712,95752.0,95751.0,0.69994477]
[1734885089378,0.0001712,95752.0,95751.0,0.69994477]
[1734885089760,0.0071712,95752.0,95751.0,0.70094477]
[1734885097837,0.0061272,95752.0,95751.0,0.70094477]
[1734885098450,0.0061272,95752.0,95751.0,0.84022482]
[1734885098656,0.0062984,95752.0,95751.0,0.84022482]
[1734885098857,2e-07,95752.0,95751.0,0.84022482]
[1734885099060,0.0001712,95768.0,95756.0,0.1]
[1734885099368,0.0001712,95768.0,95767.0,0.35884]
[1734885099590,0.0001712,95768.0,95767.0,0.4601484]
[1734885100480,0.0051712,95768.0,95767.0,0.4601484]
[1734885100721,0.0001712,95768.0,95767.0,0.4831484]
[1734885100877,0.0001712,95768.0,95767.0,0.5831484]
[1734885101069,0.0010002,95768.0,95767.0,0.5901484]
[1734885101257,0.0010002,95768.0,95767.0,0.93307938]
[1734885101462,2e-07,95768.0,95767.0,0.93307938]
[1734885101716,6e-07,95770.0,95769.0,0.094]
[1734885101947,6e-07,95770.0,95769.0,0.65348725]
[1734885102142,6e-07,95770.0,95769.0,0.68477613]
[1734885102986,8.56e-05,95782.0,95778.0,0.358816]
[1734885103191,8.56e-05,95782.0,95778.0,0.4601244]
[1734885104006,8.56e-05,95782.0,95778.0,0.80305538]
[1734885104488,0.0011714,95779.0,95778.0,0.81205538]
[1734885105214,0.0011714,95779.0,95778.0,0.83505538]
[1734885105841,0.0011714,95779.0,95778.0,0.66205538]
[1734885106042,0.0011714,95779.0,95778.0,0.56074698]
[1734885106483,0.0011714,95779.0,95778.0,0.66205538]
[1734885106690,0.0011714,95779.0,95778.0,0.65605538]
[1734885107260,0.0011714,95779.0,95778.0,0.67905538]
[1734885108631,0.0011714,95779.0,95778.0,0.864971]
[1734885109166,0.0011714,95779.0,95778.0,1.31352177]
[1734885109829,0.0011714,95779.0,95778.0,1.12760615]
[1734885110843,0.0011714,95779.0,95778.0,1.31352177]
[1734885111727,0.0011714,95779.0,95778.0,1.30752177]
[1734885112277,0.0011714,95779.0,95778.0,1.12160615]
[1734885113405,0.0011714,95779.0,95778.0,1.35398458]
[1734885113599,0.0001712,95787.0,95778.0,1.35398458]
[1734885113600,0.06172488,95795.0,95794.0,0.208781]
[1734885113808,0.06226687,95795.0,95794.0,0.208781]
[1734885114174,0.06226687,95795.0,95791.0,0.208785]
[1734885114384,0.00105137,95794.0,95788.0,0.208793]
[1734885114574,0.00105137,95794.0,95792.0,0.208784]
[1734885114955,0.06226687,95795.0,95792.0,0.417569]
[1734885116278,0.06226687,95795.0,95792.0,0.208784]
[1734885116487,0.06226687,95795.0,95788.0,0.208792]
[1734885116693,0.06226687,95795.0,95792.0,0.208783]
[1734885117115,0.06226687,95795.0,95792.0,0.210783]
[1734885118019,0.06226687,95795.0,95792.0,0.419568]
[1734885118972,0.00054199,95795.0,95792.0,0.419568]
[1734885120458,0.00054199,95795.0,95792.0,0.51263622]
[1734885121037,0.00054199,95795.0,95794.0,0.381781]
[1734885121252,0.0145426,95799.0,95795.0,0.023]
[1734885121432,0.01470503,95799.0,95798.0,0.231772]
[1734885121633,0.00970503,95799.0,95798.0,0.3330804]
[1734885122578,0.00970503,95799.0,95798.0,0.3270804]
[1734885123604,0.00970503,95799.0,95798.0,0.67013081]
[1734885124207,0.00970503,95799.0,95798.0,1.11868158]
[1734885124630,0.00970503,95799.0,95798.0,1.12768158]
[1734885126288,0.00970503,95799.0,95798.0,1.35992965]
[1734885127387,0.00970503,95799.0,95798.0,1.12768158]
[1734885128494,0.00970503,95799.0,95798.0,1.31337599]
[1734885129786,0.00970503,95799.0,95798.0,1.12768158]
[1734885132376,0.00970503,95799.0,95798.0,0.78463117]
[1734885135213,0.00970503,95799.0,95798.0,0.92377498]
[1734885135415,0.00979053,95799.0,95798.0,0.92377498]
[1734885136591,0.00979053,95799.0,95798.0,1.12697361]
[1734885137056,0.0771,95827.0,95799.0,0.44855077]
[1734885137288,0.0771,95827.0,95826.0,0.208711]
[1734885138164,0.0781,95827.0,95826.0,0.208711]
[1734885138377,0.0781,95827.0,95826.0,0.20829225]
[1734885138572,0.0771,95827.0,95826.0,0.20829225]
[1734885138993,0.0781,95827.0,95826.0,0.20829225]
[1734885139247,0.00105137,95844.0,95826.0,0.20829225]
[1734885139248,0.0771,95836.0,95831.0,0.2087]
[1734885139498,0.0771,95836.0,95831.0,0.2317]
[1734885139705,0.00023237,95832.0,95831.0,0.2317]
[1734885140302,0.00023237,95832.0,95831.0,0.2087]
[1734885141268,0.00023237,95832.0,95831.0,0.2127]
[1734885141606,0.00023237,95832.0,95831.0,0.2067]
[1734885142253,0.07645282,95836.0,95831.0,0.2067]
[1734885142439,0.07645282,95836.0,95833.0,0.208695]
[1734885142613,0.07645282,95836.0,95833.0,0.41739]
[1734885143657,0.07145282,95836.0,95833.0,0.41739]
[1734885144783,0.0474,95842.0,95831.0,0.2047]
[1734885144784,0.0474,95842.0,95834.0,0.023]
[1734885145073,0.0474,95842.0,95841.0,0.208678]
[1734885146319,0.00105137,95853.0,95847.0,0.208665]
[1734885146641,0.0762712,95848.0,95847.0,0.202665]
[1734885147257,0.08624696,95848.0,95847.0,0.202665]
[1734885147471,0.08124696,95848.0,95847.0,0.202665]
[1734885148052,0.08124696,95848.0,95847.0,0.203665]
[1734885149303,0.0712712,95848.0,95847.0,0.203665]
[1734885151681,0.0712712,95848.0,95847.0,0.197665]
[1734885152481,0.0662712,95848.0,95847.0,0.197665]
[1734885152627,0.0662712,95848.0,95847.0,0.209665]
[1734885153400,0.00105137,95853.0,95847.0,0.209665]
[1734885153595,0.00105137,95853.0,95852.0,0.208655]
[1734885153845,8.56e-05,95875.0,95864.0,0.208628]
[1734885154053,0.00024794,95865.0,95864.0,0.208628]
[1734885154407,0.00024794,95865.0,95864.0,0.231628]
[1734885154640,0.00024794,95865.0,95864.0,0.3329364]
[1734885155054,0.00024794,95865.0,95864.0,0.231628]
[1734885155302,0.00124794,95865.0,95864.0,0.208628]
[1734885155881,0.00024794,95865.0,95864.0,0.208628]
[1734885156086,0.0452,95864.0,95855.0,0.208648]
[1734885156304,0.10235977,95863.0,95851.0,0.0926878]
[1734885156512,0.284755,95852.0,95851.0,0.0926878]
[1734885156917,0.284755,95852.0,95851.0,0.0866878]
[1734885157764,0.284755,95852.0,95839.0,0.208683]
[1734885157912,0.208659,95850.0,95833.0,0.208695]
[1734885158268,0.00105137,95849.0,95838.0,0.208684]
[1734885159167,0.00105137,95851.0,95838.0,0.208684]
[1734885159388,0.20971037,95850.0,95833.0,0.208695]
[1734885159717,0.20971037,95850.0,95838.0,0.000171]
[1734885159920,8.55e-05,95849.0,95838.0,0.000171]
[1734885160235,0.00113687,95849.0,95838.0,0.000171]
[1734885160977,0.208665,95847.0,95838.0,0.000171]
[1734885161133,0.00105137,95846.0,95838.0,0.000171]
[1734885161776,0.00105137,95846.0,95831.0,0.202869]
[1734885161979,0.00105137,95846.0,95835.0,0.20869]
[1734885162198,0.00105137,95848.0,95838.0,0.001]
[1734885162338,0.00105137,95847.0,95838.0,0.001]
[1734885162559,0.00105137,95847.0,95829.0,0.023]
[1734885162760,0.00105137,95847.0,95838.0,0.001]
[1734885163060,0.00105137,95847.0,95834.0,0.208693]
[1734885163311,0.00105137,95848.0,95834.0,0.208693]
[1734885163519,0.21875732,95849.0,95831.0,0.2087]
[1734885163520,0.208668,95846.0,95831.0,0.2087]
[1734885163687,0.00105137,95845.0,95831.0,0.2087]
[1734885164259,0.208682,95840.0,95828.0,0.44855077]
[1734885164443,0.208672,95844.0,95828.0,0.44855077]
[1734885164444,0.00105137,95839.0,95828.0,0.44855077]
[1734885164630,0.208684,95839.0,95828.0,0.44855077]
[1734885164860,0.00105137,95838.0,95828.0,0.44855077]
[1734885164969,0.208687,95837.0,95828.0,0.44855077]
[1734885165172,0.00105137,95836.0,95829.0,0.208705]
[1734885165374,0.417362,95840.0,95828.0,0.44855077]
[1734885165672,0.208685,95838.0,95828.0,0.44955077]
[1734885165875,0.00105137,95837.0,95828.0,0.44855077]
[1734885166097,0.208689,95836.0,95828.0,0.44855077]
[1734885166318,0.00105137,95835.0,95828.0,0.002]
[1734885166498,0.00105137,95835.0,95820.0,0.208723]
[1734885166741,0.00105137,95835.0,95820.0,0.20288537]
[1734885166917,0.00105137,95835.0,95820.0,0.00016237]
[1734885166918,0.0782,95834.0,95820.0,0.00016237]
[1734885167148,0.00105137,95833.0,95828.0,0.001]
[1734885167352,0.208698,95832.0,95828.0,0.001]
[1734885167616,0.208702,95830.0,95828.0,0.001]
[1734885167816,0.00105137,95829.0,95828.0,0.001]
[1734885167971,0.00105137,95831.0,95828.0,0.001]
[1734885168163,0.208705,95829.0,95828.0,0.001]
[1734885168366,0.208698,95832.0,95820.0,0.00016237]
[1734885168569,0.00105137,95831.0,95820.0,0.00016237]
[1734885168808,0.208702,95830.0,95820.0,0.00316237]
[1734885169131,0.208707,95828.0,95820.0,0.00016237]
[1734885169540,0.208698,95832.0,95820.0,0.00016237]
[1734885169776,0.208702,95830.0,95820.0,0.00016237]
[1734885169986,0.208707,95828.0,95820.0,0.00516237]
[1734885170391,0.00105137,95827.0,95820.0,0.00016237]
[1734885170520,0.208707,95828.0,95820.0,0.00016237]
[1734885170722,0.00105137,95827.0,95820.0,0.00016237]
[1734885170965,0.208722,95822.0,95820.0,0.00016237]
[1734885171167,0.00105137,95821.0,95820.0,0.00016237]
[1734885171406,0.208704,95830.0,95820.0,0.00016237]
[1734885171581,0.00105137,95829.0,95820.0,0.00016237]
[1734885171784,0.208678,95841.0,95829.0,0.208704]
[1734885171984,0.01085544,95840.0,95829.0,0.202704]
[1734885172216,0.00105137,95840.0,95833.0,0.208695]
[1734885172430,0.00105137,95840.0,95829.0,0.202704]
[1734885172816,0.208683,95839.0,95826.0,0.208711]
[1734885173017,0.208694,95834.0,95823.0,0.208718]
[1734885173217,0.208694,95834.0,95829.0,0.001]
[1734885173793,8.55e-05,95837.0,95829.0,0.001]
[1734885174020,0.208689,95836.0,95829.0,0.001]
[1734885174224,0.208694,95834.0,95829.0,0.001]
[1734885174418,0.00105137,95833.0,95829.0,0.001]
[1734885174629,0.208698,95832.0,95829.0,0.001]
[1734885174801,0.00105137,95831.0,95825.0,0.208713]
[1734885175006,0.00105137,95835.0,95825.0,0.208713]
[1734885175285,0.20974537,95834.0,95825.0,0.208713]
[1734885175690,0.20974537,95834.0,95824.0,0.208715]
[1734885175894,0.208696,95833.0,95824.0,0.208715]
[1734885176132,0.00105137,95832.0,95823.0,0.004]
[1734885176332,0.2087,95831.0,95823.0,0.004]
[1734885176645,0.20975337,95830.0,95820.0,0.00033337]
[1734885176845,0.20975337,95830.0,95821.0,0.08708363]
[1734885177874,0.00105137,95830.0,95821.0,0.08708363]
[1734885178042,0.00105137,95836.0,95825.0,0.208713]
[1734885178262,0.00016228,95830.0,95825.0,0.208713]
[1734885179493,0.00016228,95830.0,95825.0,0.417426]
[1734885179912,0.00016228,95830.0,95825.0,0.208713]
[1734885180957,0.00016228,95830.0,95829.0,0.208705]
[1734885181164,0.00016228,95830.0,95827.0,0.208708]
[1734885181524,0.00016228,95830.0,95823.0,0.208717]
[1734885181696,0.00016228,95830.0,95822.0,0.1390317]
[1734885182127,0.00121365,95830.0,95822.0,0.1390317]
[1734885182402,0.00016228,95830.0,95822.0,0.1330317]
[1734885182598,0.00016228,95830.0,95823.0,0.5513919]
[1734885183584,0.00016228,95830.0,95823.0,0.3426739]
[1734885184011,0.208712,95826.0,95820.0,0.1853756]
[1734885184212,0.00105137,95825.0,95820.0,0.1853756]
[1734885184557,0.500032,95824.0,95820.0,0.1853756]
[1734885184692,0.0826,95824.0,95820.0,0.1853756]
[1734885185107,0.208718,95823.0,95820.0,0.1853756]
[1734885185329,0.208714,95825.0,95820.0,0.1853756]
[1734885185330,0.689922,95821.0,95820.0,0.1853756]
[1734885185531,0.689922,95821.0,95817.0,0.2317195]
[1734885185532,0.35,95818.0,95817.0,0.04840812]
[1734885185736,0.35,95818.0,95809.0,0.27898054]
[1734885185737,0.541346,95810.0,95809.0,0.06684049]
[1734885185936,0.7426544,95810.0,95809.0,0.06684049]
[1734885186197,0.76255283,95810.0,95809.0,0.06684049]
[1734885186385,0.76458615,95810.0,95809.0,0.06684049]
[1734885186912,0.76458615,95810.0,95809.0,0.06084049]
[1734885187259,0.76458615,95810.0,95778.0,0.000171]
[1734885187260,0.20877,95799.0,95778.0,0.000171]
[1734885187478,0.6912784,95799.0,95778.0,0.000171]
[1734885187785,0.81321543,95799.0,95778.0,0.000171]
[1734885188558,0.793317,95799.0,95778.0,0.000171]
[1734885188767,0.6912784,95799.0,95778.0,0.000171]
[1734885189030,0.80132132,95799.0,95778.0,0.000171]
[1734885189170,0.80532132,95799.0,95778.0,0.000171]
[1734885189391,0.7952784,95799.0,95778.0,0.000171]
[1734885189573,0.7912784,95799.0,95778.0,0.000171]
[1734885189800,0.7992784,95799.0,95798.0,0.001171]
[1734885189997,0.80124199,95799.0,95798.0,0.001171]
[1734885190202,0.80124199,95799.0,95798.0,0.000171]
[1734885190203,0.79324199,95799.0,95798.0,0.000171]
[1734885190624,0.80224199,95799.0,95798.0,0.001171]
[1734885190976,0.70224199,95799.0,95798.0,0.001171]
[1734885191263,0.7002784,95799.0,95798.0,0.001171]
[1734885191792,0.208795,95788.0,95776.0,0.204332]
[1734885192021,0.00105137,95787.0,95778.0,0.00054199]
[1734885192711,0.208798,95786.0,95778.0,0.00054199]
[1734885192881,0.00105137,95785.0,95778.0,0.00054199]
[1734885193972,0.00105137,95786.0,95778.0,0.00054199]
[1734885194171,0.00105137,95785.0,95778.0,0.00054199]
[1734885194600,0.00105137,95790.0,95778.0,0.00054199]
[1734885194825,0.00105137,95789.0,95778.0,0.00054199]
[1734885195019,0.00105137,95789.0,95779.0,0.208814]
[1734885195418,0.002,95785.0,95779.0,0.208814]
[1734885195626,0.002,95785.0,95778.0,0.00054199]
[1734885196141,0.00105137,95784.0,95778.0,0.00054199]
[1734885196147,0.417611,95783.0,95778.0,0.00054199]
[1734885196295,0.208809,95781.0,95778.0,0.00054199]
[1734885196465,0.00105137,95780.0,95778.0,0.00054199]
[1734885196885,0.00105137,95780.0,95769.0,0.20337599]
[1734885197068,0.00105137,95780.0,95769.0,0.20353842]
[1734885197985,0.00105137,95780.0,95769.0,0.00016243]
[1734885198201,0.01235587,95783.0,95778.0,0.208814]
[1734885198554,0.00105137,95790.0,95775.0,0.20882]
[1734885198944,0.00105137,95790.0,95775.0,0.417641]
[1734885199147,0.208792,95789.0,95775.0,0.417641]
[1734885199480,0.00105137,95788.0,95775.0,0.417641]
[1734885199682,0.00105137,95788.0,95779.0,0.208814]
[1734885200336,0.00105137,95788.0,95778.0,0.0001712]
[1734885200938,0.00105137,95788.0,95779.0,0.208814]
[1734885201914,0.00105137,95788.0,95779.0,0.202814]
[1734885202147,0.003,95788.0,95779.0,0.202814]
[1734885202359,0.00105137,95787.0,95779.0,0.202814]
[1734885202799,0.00105137,95787.0,95779.0,0.411628]
[1734885203411,0.00105137,95787.0,95778.0,0.0001712]
[1734885203538,0.003,95787.0,95780.0,0.208811]
[1734885203755,0.00105137,95786.0,95780.0,0.208811]
[1734885205672,0.00105137,95790.0,95781.0,0.208809]
[1734885205927,0.00105137,95789.0,95781.0,0.208809]
[1734885206251,0.003,95787.0,95781.0,0.208809]
[1734885206568,0.00105137,95786.0,95781.0,0.208809]
[1734885206778,0.00105137,95786.0,95778.0,0.2029852]
[1734885207211,0.00105137,95790.0,95778.0,0.2029852]
[1734885207457,0.00105137,95789.0,95778.0,0.4118012]
[1734885207846,0.01340724,95789.0,95778.0,0.2029852]
[1734885208704,0.01235587,95788.0,95778.0,0.2029852]
[1734885208952,0.00105137,95787.0,95778.0,0.2029852]
[1734885209368,0.002,95786.0,95778.0,0.2029852]
[1734885209616,0.00105137,95785.0,95778.0,0.2029852]
[1734885209998,0.01340724,95785.0,95778.0,0.2029852]
[1734885210344,0.01235587,95784.0,95778.0,0.2029852]
[1734885210543,0.00105137,95783.0,95778.0,0.2029852]
[1734885210745,0.00105137,95783.0,95769.0,0.00016243]
[1734885211010,0.01235587,95782.0,95769.0,0.00016243]
[1734885211206,0.0468,95780.0,95769.0,0.00016243]
[1734885211471,0.208829,95772.0,95769.0,0.00016243]
[1734885211599,0.00105137,95771.0,95769.0,0.00016243]
[1734885211806,0.01235587,95781.0,95769.0,0.00016243]
[1734885211807,0.01235587,95781.0,95773.0,0.202826]
[1734885212229,0.417628,95779.0,95769.0,0.00016243]
[1734885212400,0.00105137,95778.0,95769.0,0.00016243]
[1734885212617,0.00105137,95778.0,95769.0,0.20916783]
[1734885212802,0.01235587,95778.0,95769.0,0.00033383]
[1734885213006,0.01235587,95778.0,95775.0,0.208822]
[1734885213201,0.01235587,95777.0,95769.0,0.00033383]
[1734885213468,0.01235587,95777.0,95773.0,0.208825]
[1734885213784,0.01235587,95776.0,95773.0,0.208825]
[1734885214179,0.01235587,95775.0,95773.0,0.208825]
[1734885214738,0.01235587,95774.0,95773.0,0.208825]
[1734885215354,0.01235587,95774.0,95773.0,0.203825]
[1734885216131,0.01235587,95774.0,95773.0,0.206825]
[1734885216661,0.01235587,95774.0,95773.0,0.286725]
[1734885216852,0.01235587,95774.0,95773.0,0.4527334]
[1734885217253,0.00105137,95801.0,95790.0,0.208789]
[1734885217450,0.208756,95806.0,95794.0,0.20878]
[1734885217673,0.208759,95804.0,95791.0,0.208787]
[1734885217876,0.21906751,95806.0,95789.0,0.0799]
[1734885217877,0.00105137,95803.0,95789.0,0.0799]
[1734885218081,0.088586,95835.0,95811.0,0.0799]
[1734885218283,0.01041632,95830.0,95811.0,0.0799]
[1734885218486,8.55e-05,95830.0,95825.0,0.208711]
[1734885218688,8.55e-05,95830.0,95811.0,0.0799]
[1734885218898,0.00105137,95828.0,95817.0,0.208729]
[1734885219331,0.10290099,95828.0,95809.0,0.208747]
[1734885219537,0.0829,95824.0,95803.0,0.20876]
[1734885219893,0.208741,95813.0,95811.0,0.001]
[1734885220102,0.10235977,95812.0,95811.0,0.001]
[1734885220250,0.10235977,95812.0,95788.0,0.0799]
[1734885220251,0.10235977,95812.0,95793.0,0.208781]
[1734885220456,0.208757,95805.0,95793.0,0.208781]
[1734885220692,0.00105137,95804.0,95793.0,0.208781]
[1734885221497,0.00105137,95809.0,95788.0,0.0799]
[1734885221740,0.00105137,95808.0,95798.0,0.208771]
[1734885221883,0.00105137,95808.0,95798.0,0.202771]
[1734885222488,0.00105137,95808.0,95803.0,0.208759]
[1734885222764,0.00105137,95811.0,95798.0,0.202771]
[1734885222944,0.208748,95809.0,95794.0,0.208779]
[1734885223153,0.208753,95807.0,95798.0,0.001]
[1734885223353,0.00105137,95806.0,95798.0,0.001]
[1734885223667,0.208757,95805.0,95790.0,0.20879]
[1734885223872,0.00105137,95804.0,95803.0,0.001]
[1734885224092,0.00105137,95804.0,95790.0,0.20879]
[1734885224357,0.208761,95803.0,95790.0,0.20879]
[1734885224497,0.00105137,95802.0,95790.0,0.417579]
[1734885225042,0.00197852,95801.0,95790.0,0.417579]
[1734885225246,0.00105137,95800.0,95790.0,0.417579]
[1734885225793,0.00197675,95799.0,95790.0,0.417579]
[1734885225994,0.00197675,95799.0,95788.0,0.0799]
[1734885226298,0.00197675,95799.0,95790.0,0.20879]
[1734885226491,0.00205137,95804.0,95794.0,0.20878]
[1734885226693,0.00197679,95798.0,95794.0,0.20878]
[1734885226883,0.00197679,95798.0,95794.0,0.20278]
[1734885227216,0.00054122,95798.0,95794.0,0.20278]
[1734885227559,0.00054122,95798.0,95790.0,0.001]
[1734885227827,0.00197775,95797.0,95790.0,0.001]
[1734885228014,0.01439046,95797.0,95790.0,0.001]
[1734885228218,0.00105137,95796.0,95790.0,0.001]
[1734885228716,0.01241271,95795.0,95790.0,0.001]
[1734885228919,0.00105137,95794.0,95790.0,0.001]
[1734885229138,0.00105137,95794.0,95789.0,0.20879]
[1734885229338,0.01346408,95794.0,95785.0,0.2088]
[1734885229572,0.00195997,95793.0,95785.0,0.2088]
[1734885229776,0.00105137,95792.0,95781.0,0.208809]
[1734885229984,0.0030123,95792.0,95790.0,0.001]
[1734885230186,0.00105137,95792.0,95790.0,0.001]
[1734885230362,0.01241271,95791.0,95780.0,0.0833]
[1734885230592,0.00105137,95790.0,95781.0,0.208809]
[1734885230825,0.01241271,95791.0,95790.0,0.20879]
[1734885231201,0.20876,95804.0,95790.0,0.20879]
[1734885231374,0.00105137,95803.0,95790.0,0.41758]
[1734885231594,0.01470024,95797.0,95790.0,0.20879]
[1734885231787,0.01470024,95797.0,95796.0,0.286076]
[1734885231984,0.0124138,95797.0,95796.0,0.286076]
[1734885233555,0.0124138,95797.0,95796.0,0.0833]
[1734885233729,0.0124138,95797.0,95796.0,0.0853]
[1734885236776,0.0124138,95797.0,95796.0,0.0793]
[1734885238146,0.0124138,95797.0,95796.0,0.002]
[1734885238346,0.01438352,95797.0,95796.0,0.002]
[1734885238860,0.0124138,95797.0,95796.0,0.002]
[1734885240375,0.01346517,95797.0,95796.0,0.002]
[1734885240573,0.01543582,95797.0,95796.0,0.002]
[1734885240998,0.36674422,95797.0,95796.0,0.002]
[1734885241262,0.4637222,95797.0,95796.0,0.002]
[1734885241981,0.46600613,95797.0,95796.0,0.002]
[1734885242206,0.15,95795.0,95794.0,0.0001714]
[1734885242401,0.358781,95794.0,95777.0,0.2029874]
[1734885242599,0.02443992,95797.0,95784.0,0.083]
[1734885242800,0.00105137,95793.0,95784.0,0.083]
[1734885243042,0.01346517,95793.0,95789.0,0.20879]
[1734885243235,0.01346517,95793.0,95786.0,0.208798]
[1734885243458,0.0124138,95792.0,95786.0,0.208798]
[1734885243778,0.00105137,95791.0,95786.0,0.208798]
[1734885244142,0.01346517,95791.0,95786.0,0.208798]
[1734885244438,0.0124138,95790.0,95786.0,0.208798]
[1734885245087,0.00105137,95796.0,95786.0,0.208798]
[1734885245088,0.0124138,95789.0,95786.0,0.208798]
[1734885245534,0.0124138,95789.0,95777.0,0.417634]
[1734885245720,0.01346517,95788.0,95777.0,0.208816]
[1734885245935,0.208798,95786.0,95774.0,0.083]
[1734885246132,0.208796,95787.0,95786.0,0.001]
[1734885246333,0.3513084,95787.0,95769.0,0.09298185]
[1734885246489,0.208829,95772.0,95769.0,0.09068985]
[1734885246919,0.208821,95776.0,95765.0,0.083]
[1734885247090,0.01242191,95771.0,95765.0,0.083]
[1734885247279,0.01242191,95771.0,95766.0,0.208842]
[1734885247766,0.01242191,95770.0,95766.0,0.417684]
[1734885248587,0.01242191,95769.0,95766.0,0.417684]
[1734885249160,0.01242191,95768.0,95766.0,0.417684]
[1734885249584,0.01242191,95767.0,95766.0,0.5419924]
[1734885249940,0.01242191,95767.0,95766.0,0.5439924]
[1734885250176,0.208803,95784.0,95771.0,0.20883]
[1734885250907,0.01242191,95783.0,95771.0,0.20883]
[1734885251429,0.01242191,95782.0,95775.0,0.20882]
[1734885251881,0.00105137,95781.0,95775.0,0.20282]
[1734885252088,0.00105137,95785.0,95775.0,0.20282]
[1734885252287,0.00105137,95784.0,95775.0,0.20282]
[1734885252488,0.21958451,95789.0,95775.0,0.20282]